bitfinex/quotes_ETHUSD_20250813
["timestamp","ask_amount","ask_price","bid_price","bid_amount"]
[1755077032027,0.201176,4637.9,4637.3,3.363]
[1755077032320,0.201176,4637.9,4637.0,0.001]
[1755077032533,0.2077476,4638.0,4637.1,3.363]
[1755077032690,0.32426287,4637.9,4637.1,3.363]
[1755077032891,0.32426287,4637.9,4637.0,2.15755834]
[1755077033091,0.32426287,4637.9,4637.1,3.362]
[1755077033287,0.12297476,4637.9,4637.2,3.362]
[1755077033825,0.12297476,4637.9,4637.1,2.60301956]
[1755077034024,0.12297476,4637.9,4637.1,2.60299467]
[1755077034213,0.12297476,4637.9,4637.2,3.361]
[1755077034394,0.12297476,4637.9,4637.1,2.60298236]
[1755077034593,0.12297476,4637.9,4637.1,2.20298236]
[1755077035290,0.12297476,4637.9,4637.2,5.167]
[1755077035490,0.12297476,4637.9,4637.0,2.688]
[1755077035491,0.472,4637.8,4637.0,2.688]
[1755077035705,0.472,4637.8,4637.3,5.167]
[1755077035905,0.472,4637.8,4637.4,3.359]
[1755077036113,0.12297476,4637.9,4637.3,5.167]
[1755077036631,0.12297476,4637.9,4637.4,3.359]
[1755077036811,0.12297476,4637.9,4637.5,3.358]
[1755077037007,0.12297476,4637.9,4637.3,5.167]
[1755077038302,0.12297476,4637.9,4637.3,7.32342036]
[1755077038504,0.12297476,4637.9,4637.3,5.167]
[1755077038698,0.12297476,4637.9,4637.4,3.359]
[1755077039147,0.04777476,4637.9,4637.4,3.359]
[1755077039630,0.04777476,4637.9,4637.3,7.3234235]
[1755077039831,0.04777476,4637.9,4637.4,5.167]
[1755077040025,0.04777476,4637.9,4637.5,5.167]
[1755077040227,0.04777476,4637.9,4637.2,2.15643677]
[1755077040645,0.04777476,4637.9,4637.3,2.15640038]
[1755077040803,0.04777476,4637.9,4637.3,2.15639599]
[1755077041004,0.04777476,4637.9,4637.0,0.8453]
[1755077041303,0.04777476,4637.9,4637.1,3.355]
[1755077041511,0.55,4637.8,4637.2,3.355]
[1755077041741,0.55,4637.8,4636.5,2.15778921]
[1755077041742,0.55,4637.4,4636.5,0.001]
[1755077041899,0.75123595,4637.4,4636.2,2.15793248]
[1755077042102,0.55,4637.2,4636.2,0.001]
[1755077042305,0.75123595,4637.2,4636.2,2.15793024]
[1755077042500,0.4376,4637.1,4636.2,2.15793836]
[1755077042700,0.4376,4637.1,4636.0,0.001]
[1755077042701,16.81237739,4637.0,4636.0,0.001]
[1755077043013,0.55,4636.8,4636.0,0.001]
[1755077043734,0.55,4636.8,4635.1,0.4632]
[1755077043735,3.55,4636.4,4635.1,0.4632]
[1755077043926,0.55,4636.2,4635.2,2.23]
[1755077044123,0.4376,4636.1,4635.3,2.23]
[1755077044432,0.63871155,4636.1,4635.4,3.355]
[1755077044739,0.63871155,4636.1,4634.1,0.001]
[1755077044740,0.55,4635.6,4634.2,2.15786975]
[1755077044936,3.55,4635.4,4634.1,0.001]
[1755077045236,0.55,4635.2,4634.1,0.001]
[1755077045442,0.55,4635.2,4634.2,7.855]
[1755077045927,0.55,4635.0,4634.3,5.169]
[1755077046126,0.55,4634.8,4634.3,5.169]
[1755077046333,0.55,4634.6,4634.1,0.001]
[1755077046539,0.22007116,4634.7,4634.2,5.169]
[1755077046737,0.55,4635.3,4634.3,5.169]
[1755077046939,0.55,4636.0,4635.2,2.15736184]
[1755077047145,0.84708422,4636.1,4635.3,3.355]
[1755077047350,0.20048422,4636.6,4635.4,3.361]
[1755077047516,0.8996,4636.7,4635.9,2.15706069]
[1755077047852,0.8996,4636.7,4636.0,3.361]
[1755077047853,0.646552,4636.3,4636.0,3.361]
[1755077048158,0.646552,4636.3,4635.3,0.8453]
[1755077048352,0.4376,4636.2,4634.8,0.8453]
[1755077048554,0.55,4636.1,4634.1,1.3095]
[1755077048851,0.4376,4636.0,4634.3,2.15782318]
[1755077049034,0.50876842,4635.9,4635.0,2.15748927]
[1755077049238,0.50876842,4635.9,4634.3,2.15782318]
[1755077049239,0.4376,4635.8,4634.3,2.15782318]
[1755077049445,0.4376,4635.8,4635.4,2.15730525]
[1755077049641,1.3372,4635.7,4634.5,2.15772792]
[1755077049851,1.3372,4635.7,4634.1,1.3095]
[1755077049852,0.20048422,4635.8,4634.1,0.001]
[1755077050017,0.646552,4636.3,4635.6,2.15721805]
[1755077050018,0.37092526,4635.7,4635.6,2.15721805]
[1755077050223,0.646552,4636.3,4636.2,2.15693887]
[1755077050522,0.13372,4636.6,4636.5,2.1567993]
[1755077050729,0.4376,4637.5,4637.2,2.15647299]
[1755077050939,0.4376,4637.5,4637.3,3.361]
[1755077051121,0.4376,4637.5,4636.7,2.15666632]
[1755077051122,1.3372,4637.4,4634.9,2.15752096]
[1755077051344,1.983648,4637.4,4635.9,0.8453]
[1755077051543,0.20033483,4637.3,4637.2,2.15647373]
[1755077051719,0.46171484,4638.7,4636.6,0.8453]
[1755077051720,0.8996,4638.2,4636.6,0.8453]
[1755077052059,0.13372,4638.1,4636.9,2.15661325]
[1755077052214,0.13372,4638.1,4637.0,0.8453]
[1755077052420,0.8996,4638.7,4637.0,0.8453]
[1755077052421,0.4376,4638.6,4638.5,2.15586935]
[1755077052618,0.64637,4637.6,4637.4,1.3086]
[1755077052855,0.64637,4637.6,4637.5,2.15633423]
[1755077053054,0.4376,4638.9,4638.4,2.15588939]
[1755077053252,0.646267,4638.5,4638.3,2.15596097]
[1755077053427,0.646267,4638.5,4636.8,2.15665104]
[1755077053428,0.646267,4638.5,4638.4,3.367]
[1755077053635,0.646267,4638.5,4637.2,0.8453]
[1755077053837,0.646267,4638.5,4638.4,2.15591583]
[1755077054425,0.646267,4638.5,4638.3,2.15595681]
[1755077054767,0.646267,4638.5,4638.2,2.15600448]
[1755077054768,0.108,4638.4,4638.2,2.15600448]
[1755077054949,0.646267,4638.5,4637.3,0.468]
[1755077055463,0.108,4637.4,4637.3,5.31142723]
[1755077055672,0.108,4637.4,4637.3,10.01142723]
[1755077056160,0.108,4637.4,4637.3,11.222]
[1755077056727,0.2271946,4637.4,4637.3,7.855]
[1755077056954,0.2271946,4637.4,4637.3,5.168]
[1755077057228,0.6647946,4637.4,4637.3,5.168]
[1755077057630,1.5643946,4637.4,4636.0,0.8453]
[1755077057838,0.5567946,4637.4,4636.1,2.15698539]
[1755077058165,0.1191946,4637.4,4637.1,2.15649783]
[1755077058528,0.1191946,4637.4,4636.9,2.15657606]
[1755077058728,0.108,4637.0,4636.9,2.15657606]
[1755077059239,0.108,4637.0,4636.9,5.52157606]
[1755077059861,0.108,4637.0,4636.7,2.15668349]
[1755077060168,0.108,4637.0,4636.9,2.15661325]
[1755077062435,0.108,4637.0,4636.9,5.52161325]
[1755077063569,0.108,4637.0,4636.9,6.83491325]
[1755077065273,0.2006015,4638.6,4638.5,2.15586935]
[1755077065274,0.20057156,4638.6,4638.5,2.15586935]
[1755077065443,0.002,4640.0,4638.7,2.155764]
[1755077065444,1.3372,4639.4,4638.7,2.155764]
[1755077065641,0.108,4638.6,4638.5,5.51686935]
[1755077066367,0.108,4638.6,4635.8,2.70708418]
[1755077066368,1.4452,4638.6,4637.4,0.8453]
[1755077066535,1.3372,4638.6,4637.5,3.361]
[1755077066730,0.13372,4638.5,4638.1,2.15604412]
[1755077066931,0.13372,4638.5,4638.2,3.361]
[1755077066932,1.3372,4638.4,4638.2,3.361]
[1755077067137,0.8996,4638.4,4638.3,5.51696231]
[1755077067533,0.108,4638.4,4638.3,5.51696231]
[1755077068054,0.108,4638.4,4638.3,3.361]
[1755077068458,1.4452,4638.4,4636.9,8.7003]
[1755077068675,0.157892,4638.3,4637.1,2.15647826]
[1755077068887,0.108,4637.2,4637.1,2.15647826]
[1755077069277,0.108,4637.2,4637.1,3.00177826]
[1755077069475,0.108,4637.2,4637.1,2.15647826]
[1755077069992,0.108,4637.2,4637.1,3.359]
[1755077070491,0.108,4637.2,4637.1,5.51552023]
[1755077070786,0.108,4637.2,4636.9,7.855]
[1755077070984,0.4583,4637.1,4636.9,7.855]
[1755077071307,1.59084,4637.0,4636.9,7.855]
[1755077071595,0.61274,4637.0,4636.9,7.855]
[1755077071799,1.4364,4637.0,4636.9,5.167]
[1755077072001,0.108,4637.2,4637.0,2.15652323]
[1755077072207,0.108,4637.2,4636.9,10.68260595]
[1755077072546,0.108,4637.2,4636.9,8.526]
[1755077072713,0.4583,4637.1,4636.9,8.526]
[1755077073486,0.4583,4637.1,4636.9,10.68259398]
[1755077073660,0.4583,4637.1,4636.9,8.526]
[1755077074084,0.4583,4637.1,4636.9,10.6825917]
[1755077074283,0.21661,4637.2,4636.9,8.526]
[1755077074484,0.21661,4637.2,4637.1,2.15652023]
[1755077074782,0.108,4637.2,4637.1,2.15652023]
[1755077074986,0.108,4637.2,4636.9,8.526]
[1755077075155,0.108,4637.2,4637.1,2.15652023]
[1755077075551,0.108,4637.2,4636.9,8.526]
[1755077075751,0.108,4637.2,4637.0,2.15656674]
[1755077076096,0.108,4637.2,4637.1,2.15652023]
[1755077076300,0.108,4637.2,4637.1,5.51252023]
[1755077076502,0.108,4637.2,4637.1,3.356]
[1755077076833,1.5444,4637.2,4637.1,3.356]
[1755077076984,1.69884,4637.2,4637.1,3.356]
[1755077077182,0.72074,4637.2,4637.1,5.51252023]
[1755077077480,0.5663,4637.2,4637.1,3.356]
[1755077077684,1.5444,4637.2,4636.9,5.167]
[1755077077881,0.5663,4637.2,4637.0,5.5115313]
[1755077078112,0.5663,4637.2,4637.1,3.355]
[1755077078282,0.5663,4637.2,4637.1,5.51152023]
[1755077078283,0.108,4637.2,4637.1,5.51152023]
[1755077080705,0.108,4637.2,4637.0,2.15654614]
[1755077080905,0.108,4637.2,4637.1,2.15652023]
[1755077081081,0.20100282,4638.0,4637.9,2.15614825]
[1755077081280,0.20100282,4638.0,4637.7,2.15621585]
[1755077081281,0.4583,4638.5,4638.1,2.15603029]
[1755077081486,1.63740282,4638.4,4638.1,2.15603029]
[1755077081680,0.108,4638.2,4638.1,2.15603029]
[1755077081887,0.108,4638.2,4638.1,5.51503029]
[1755077082085,0.26244,4638.2,4638.1,5.51503029]
[1755077082288,0.108,4638.2,4638.1,5.51503029]
[1755077082976,0.5663,4638.2,4638.1,3.359]
[1755077083171,1.5444,4638.2,4638.1,3.359]
[1755077083574,2.54388,4638.2,4638.1,3.359]
[1755077083777,2.74488282,4638.2,4638.1,3.359]
[1755077083986,3.0193711,4638.2,4638.1,3.359]
[1755077084188,3.0193711,4638.2,4637.7,2.15623228]
[1755077084394,1.38196828,4638.2,4637.7,2.15623228]
[1755077084600,1.38196828,4638.2,4637.4,2.15636672]
[1755077084601,1.63774443,4638.1,4637.2,2.687]
[1755077084819,0.108,4637.3,4637.2,2.687]
[1755077085024,0.108,4637.3,4637.2,5.82717373]
[1755077085304,0.108,4637.3,4637.2,4.84347373]
[1755077085685,0.108,4637.3,4637.2,8.19847373]
[1755077089108,0.108,4637.3,4637.2,4.84347373]
[1755077089406,0.108,4637.3,4637.2,8.19647373]
[1755077091531,0.108,4637.3,4637.2,4.84347373]
[1755077091718,0.108,4637.3,4637.2,8.19247373]
[1755077092202,0.108,4637.3,4637.0,4.84352829]
[1755077092397,0.108,4637.3,4637.2,2.15647373]
[1755077093404,0.108,4637.3,4637.2,5.50447373]
[1755077097028,0.108,4637.3,4637.2,5.50147373]
[1755077097215,0.108,4637.3,4637.0,4.84352829]
[1755077097403,0.108,4637.3,4637.2,2.15647373]
[1755077097815,0.108,4637.3,4637.2,2.15496006]
[1755077098136,0.99948,4638.2,4638.1,2.15605528]
[1755077098496,1.10748,4638.2,4638.1,2.15605528]
[1755077098733,1.10748,4638.2,4638.1,5.50005528]
[1755077099304,2.54388,4638.2,4638.1,2.15605528]
[1755077099609,2.74528688,4638.2,4638.1,3.343]
[1755077099796,2.74528688,4638.2,4638.1,5.49905528]
[1755077099797,1.58361557,4638.2,4638.1,5.49905528]
[1755077100440,1.30888688,4638.2,4638.1,5.49905528]
[1755077100614,1.10748,4638.2,4638.1,5.49905528]
[1755077100818,2.49508,4638.2,4638.1,2.15605528]
[1755077101014,2.69648688,4638.2,4638.1,5.49805528]
[1755077101608,1.30888688,4638.2,4638.1,5.49805528]
[1755077101909,1.23856869,4638.2,4638.1,2.15605528]
[1755077102213,2.62616869,4638.2,4638.1,3.341]
[1755077102413,1.02415089,4639.3,4638.1,3.341]
[1755077102414,0.01,4639.3,4639.2,2.15554405]
[1755077102629,0.118,4639.3,4639.2,10.67854405]
[1755077102810,0.5636,4639.3,4639.2,10.67854405]
[1755077103006,0.118,4639.3,4639.2,10.67854405]
[1755077103820,0.5636,4639.3,4639.2,10.67854405]
[1755077104044,1.5056,4639.3,4639.2,10.67854405]
[1755077104230,1.5056,4639.3,4639.2,5.167]
[1755077104231,1.65616,4639.3,4639.2,5.167]
[1755077104614,1.65616,4639.3,4638.2,2.15597904]
[1755077104810,1.10256,4639.3,4637.6,3.12355698]
[1755077105011,0.55,4639.1,4637.3,2.15639483]
[1755077105207,0.108,4637.4,4637.2,2.15647373]
[1755077105413,0.108,4637.4,4637.3,10.67842723]
[1755077106246,0.5536,4637.4,4637.3,10.67842723]
[1755077107344,0.5536,4637.4,4637.3,5.167]
[1755077107656,0.5536,4637.4,4632.2,5.00515341]
[1755077107657,0.55,4637.3,4635.2,2.15740369]
[1755077107815,0.55,4637.1,4635.5,0.001]
[1755077108014,0.71146567,4637.1,4635.6,2.15721454]
[1755077108211,0.55,4636.9,4635.6,2.15721548]
[1755077108415,0.55,4636.9,4635.5,2.15826216]
[1755077108615,0.55,4637.1,4636.0,3.354]
[1755077108839,0.55,4636.7,4636.0,3.354]
[1755077109015,0.55,4636.5,4636.0,3.354]
[1755077109229,0.55,4636.3,4636.0,3.354]
[1755077109539,0.19376,4636.6,4636.0,3.354]
[1755077109540,0.55,4636.1,4636.0,3.354]
[1755077109722,0.55,4636.0,4635.5,0.001]
[1755077110087,0.74376,4636.0,4635.5,0.001]
[1755077110216,2.13136,4636.0,4635.5,0.001]
[1755077111316,2.13136,4636.0,4635.9,3.355]
[1755077111540,2.13136,4636.0,4635.0,0.1]
[1755077111741,0.55,4635.8,4635.0,0.1]
[1755077111954,0.55,4635.6,4635.0,0.1]
[1755077112260,0.55,4635.6,4634.1,0.001]
[1755077112432,0.55,4635.4,4634.1,0.001]
[1755077112820,0.55,4635.2,4634.1,0.001]
[1755077113156,0.55,4635.0,4634.1,0.001]
[1755077113368,0.55,4635.0,4634.2,3.353]
[1755077113681,0.55,4635.0,4634.1,0.001]
[1755077113682,0.55,4634.8,4634.1,0.001]
[1755077114037,0.55,4634.6,4634.2,3.352]
[1755077114251,0.55,4634.6,4634.1,0.001]
[1755077114429,0.55,4634.4,4634.1,0.001]
[1755077114768,0.55,4634.2,4634.1,0.001]
[1755077115122,1.9376,4634.2,4634.1,0.001]
[1755077115368,2.13740656,4634.2,4634.1,5.171]
[1755077115542,2.13740656,4634.2,4634.1,5.17]
[1755077115859,2.30273778,4634.2,4634.1,5.17]
[1755077116063,5.55238756,4634.2,4634.1,5.17]
[1755077116562,0.55,4634.0,4633.7,0.001]
[1755077116749,0.74980656,4634.1,4633.7,0.001]
[1755077116948,0.55,4633.8,4633.7,0.001]
[1755077117146,0.74949709,4633.8,4633.7,0.001]
[1755077117358,2.15130971,4633.8,4633.7,0.001]
[1755077117826,2.25930971,4633.8,4633.7,0.001]
[1755077118028,2.25930971,4633.8,4633.7,3.352]
[1755077118338,2.45867492,4633.8,4633.1,2.15837558]
[1755077118555,0.658,4633.2,4633.1,2.15837558]
[1755077118855,0.55,4633.1,4633.0,0.001]
[1755077119074,0.6708,4633.1,4633.0,0.001]
[1755077119229,0.6708,4633.1,4633.0,2.15942866]
[1755077119628,0.6708,4633.1,4633.0,0.001]
[1755077119933,0.6708,4633.1,4633.0,2.15942866]
[1755077120436,0.6708,4633.1,4633.0,5.50842866]
[1755077121368,0.19913596,4633.9,4633.0,3.35]
[1755077121661,0.4456,4634.4,4633.0,4.754]
[1755077121842,0.64473596,4634.4,4633.7,2.15809473]
[1755077122051,0.55,4634.3,4633.8,3.349]
[1755077122343,0.55,4634.1,4633.8,3.349]
[1755077122534,1.19473596,4634.1,4633.8,3.349]
[1755077122731,0.55,4633.9,4633.0,0.001]
[1755077122936,0.74913596,4633.9,4633.1,3.348]
[1755077123139,0.55,4633.7,4633.1,2.15837819]
[1755077123457,0.55,4633.5,4633.4,2.15824232]
[1755077123654,0.4456,4635.2,4633.5,2.15819574]
[1755077123831,0.4456,4635.2,4633.6,3.56214917]
[1755077124032,0.4456,4635.2,4633.8,2.15805602]
[1755077124357,0.4456,4635.2,4634.5,2.15769404]
[1755077124548,0.15865636,4635.1,4634.6,2.15765022]
[1755077124968,0.15865636,4635.1,4633.9,2.15800945]
[1755077124969,1.3876,4635.0,4634.7,2.15763228]
[1755077125261,0.74896361,4634.9,4634.8,5.5115904]
[1755077125437,0.55,4634.9,4634.8,8.526]
[1755077125934,0.55,4634.9,4634.8,10.6835904]
[1755077126131,0.55,4634.9,4634.8,8.526]
[1755077126365,0.55,4634.9,4634.8,10.6835904]
[1755077126552,0.55,4634.9,4634.8,8.526]
[1755077126753,0.55,4634.9,4634.8,10.6835904]
[1755077127837,0.55,4634.9,4634.8,8.523]
[1755077128172,1.9376,4634.9,4634.8,8.523]
[1755077128385,0.55,4634.8,4634.6,2.15768345]
[1755077128539,0.1990099,4635.2,4634.7,5.172]
[1755077128739,1.9376,4635.1,4634.7,5.172]
[1755077128956,0.1990099,4635.0,4634.7,5.172]
[1755077129365,0.6446099,4635.0,4634.7,5.172]
[1755077129561,0.4419,4634.9,4634.7,5.172]
[1755077129747,0.1990099,4635.0,4634.7,5.172]
[1755077129748,0.55,4634.8,4634.7,5.172]
[1755077129956,0.9919,4634.8,4634.7,5.172]
[1755077130252,1.1909099,4634.8,4634.7,8.524]
[1755077130452,1.1909099,4634.8,4634.7,8.523]
[1755077130453,0.9919,4634.8,4634.7,8.523]
[1755077130661,0.74932193,4634.8,4634.7,8.523]
[1755077130881,0.55,4635.1,4634.7,10.68063083]
[1755077131067,0.66912219,4635.0,4634.7,8.523]
[1755077131488,2.21442193,4634.9,4634.8,8.522]
[1755077131673,2.21442193,4634.9,4633.8,1.49]
[1755077131989,2.21442193,4634.9,4633.8,3.64805334]
[1755077131990,0.55,4634.7,4633.8,3.64805334]
[1755077132155,0.55,4634.5,4633.8,1.49]
[1755077132485,0.19932193,4634.6,4633.8,1.49]
[1755077132486,0.108,4633.9,4633.8,5.06245602]
[1755077132881,0.108,4633.9,4633.8,3.64805602]
[1755077133082,0.108,4633.9,4633.8,5.06245602]
[1755077133284,0.108,4633.9,4633.8,4.63145602]
[1755077133466,0.108,4633.9,4633.6,2.15812312]
[1755077133660,0.108,4633.9,4633.7,3.349]
[1755077133861,0.55,4634.2,4634.1,2.15791631]
[1755077134186,0.74988898,4634.2,4634.1,3.349]
[1755077134374,0.85788898,4634.2,4634.1,5.50691631]
[1755077134773,2.32298898,4634.2,4633.4,2.15820919]
[1755077134953,0.55,4634.0,4633.5,5.5061542]
[1755077135158,0.55,4633.8,4633.5,5.50618527]
[1755077135505,0.108,4633.6,4633.5,3.348]
[1755077135658,0.30788898,4633.6,4633.5,8.52]
[1755077135858,0.30788898,4633.6,4633.5,10.67719574]
[1755077136470,0.30788898,4633.6,4633.5,7.33019574]
[1755077136788,0.30788898,4633.6,4633.5,10.67619574]
[1755077137596,0.85788898,4633.6,4633.5,8.517]
[1755077138191,0.85788898,4633.6,4633.5,10.67519574]
[1755077138562,0.85788898,4633.6,4633.5,8.517]
[1755077138877,0.85788898,4633.6,4633.5,10.67519574]
[1755077139193,0.85788898,4633.6,4633.5,7.33019574]
[1755077139417,0.85788898,4633.6,4633.5,10.67319574]
[1755077139694,0.85788898,4633.6,4633.5,10.67219574]
[1755077139892,0.85788898,4633.6,4633.5,7.33019574]
[1755077140194,0.85788898,4633.6,4633.5,11.10419574]
[1755077140195,0.30932853,4633.6,4633.5,11.10419574]
[1755077140399,0.30932853,4633.6,4633.5,11.61559574]
[1755077140783,0.30932853,4633.6,4633.5,11.10419574]
[1755077141311,0.30932853,4633.6,4633.5,12.94194326]
[1755077141794,0.30932853,4633.6,4633.5,9.08754326]
[1755077142022,0.30932853,4633.6,4633.5,11.10319574]
[1755077143475,0.30932853,4633.6,4633.5,11.61459574]
[1755077143798,0.002,4635.0,4634.9,2.15754385]
[1755077144005,0.002,4635.0,4634.9,5.49954385]
[1755077144302,0.66,4635.0,4634.9,5.49954385]
[1755077144666,0.66,4635.0,4633.9,0.5114]
[1755077144871,2.0151,4634.9,4634.0,3.341]
[1755077145100,0.55,4634.7,4634.5,2.15772136]
[1755077145268,1.5732,4634.6,4634.5,2.15769876]
[1755077145477,0.658,4634.6,4634.5,5.49869876]
[1755077146872,0.20171,4634.8,4634.5,5.49869876]
[1755077147073,0.75171,4634.8,4634.7,2.15763695]
[1755077147300,0.20171,4634.8,4634.7,5.49863695]
[1755077147674,0.108,4634.8,4634.7,5.49863695]
[1755077152827,0.5499,4634.8,4634.7,5.49263695]
[1755077153122,1.5731,4634.8,4634.7,5.49263695]
[1755077153420,0.108,4634.8,4634.7,5.49263695]
[1755077154224,1.5731,4634.8,4634.7,5.49263695]
[1755077154422,1.73061,4634.8,4634.7,5.49263695]
[1755077154722,0.26551,4634.8,4634.7,2.15763695]
[1755077154900,0.11,4634.8,4634.7,2.15763695]
[1755077155096,0.11,4634.8,4634.7,5.49063695]
[1755077155301,2.1251,4634.8,4634.7,5.49063695]
[1755077155698,2.32664549,4634.8,4634.7,5.49063695]
[1755077156755,0.86154549,4634.8,4634.7,5.49063695]
[1755077158397,1.88474549,4634.8,4634.7,5.49063695]
[1755077158597,2.07339639,4634.8,4634.7,5.49063695]
[1755077158934,1.05019639,4634.8,4634.7,5.49063695]
[1755077159095,0.86152184,4634.8,4634.7,5.49063695]
[1755077159301,0.86151291,4634.8,4634.7,5.49063695]
[1755077159800,0.86151291,4634.8,4634.5,2.15770279]
[1755077160000,2.19091291,4634.7,4634.6,2.15768351]
[1755077160226,2.19091291,4634.7,4634.6,5.48668351]
[1755077160423,2.4212042,4634.7,4634.6,2.15768351]
[1755077160727,2.4212042,4634.7,4634.6,5.48668351]
[1755077161626,0.55,4634.6,4634.2,2.689]
[1755077161928,2.4212042,4634.7,4634.3,3.328]
[1755077161929,0.55,4634.4,4634.3,3.328]
[1755077162127,2.43303333,4634.4,4634.2,2.15785021]
[1755077162327,0.55,4634.2,4633.3,2.689]
[1755077162664,0.108,4633.7,4633.6,2.15914917]
[1755077163197,1.6683,4633.7,4633.6,2.15914917]
[1755077163416,2.29891291,4633.7,4633.6,0.001]
[1755077163616,2.5288042,4633.7,4633.6,3.33]
[1755077163827,2.52884287,4633.7,4633.6,0.001]
[1755077164000,2.52884287,4633.7,4633.6,3.329]
[1755077164196,2.52884287,4633.7,4633.6,0.001]
[1755077164429,2.52884287,4633.7,4633.6,3.329]
[1755077165228,0.55,4633.6,4633.3,2.689]
[1755077165431,2.44383587,4633.6,4633.4,8.498]
[1755077165595,0.75155158,4633.5,4633.4,8.498]
[1755077165800,2.0974,4633.5,4633.4,8.498]
[1755077166137,2.29895158,4633.5,4633.4,8.498]
[1755077166713,2.52884674,4633.5,4633.4,8.498]
[1755077167029,2.52877456,4633.5,4633.4,8.498]
[1755077167234,2.52877456,4633.5,4633.4,5.172]
[1755077167421,2.52874828,4633.5,4633.4,5.172]
[1755077168142,2.52874828,4633.5,4633.0,0.001]
[1755077168143,3.55,4633.4,4631.5,2.59238582]
[1755077168357,0.55,4633.2,4631.5,0.4333]
[1755077168522,0.55,4633.0,4632.9,3.327]
[1755077168722,0.55,4633.0,4631.1,0.4333]
[1755077168723,0.55,4632.8,4631.1,0.4333]
[1755077168944,0.55,4632.6,4631.9,2.15893911]
[1755077169256,0.55,4632.4,4631.1,0.4333]
[1755077169474,0.55,4632.4,4632.2,2.15877112]
[1755077169743,0.658,4632.3,4632.2,2.15877112]
[1755077170157,0.55,4632.2,4632.0,2.1588788]
[1755077170330,0.75122763,4632.2,4632.1,5.48684803]
[1755077170536,0.98109039,4632.2,4632.1,5.48684803]
[1755077170849,1.99139039,4632.2,4632.1,2.15884803]
[1755077171048,2.42049039,4632.2,4632.1,5.48684803]
[1755077171546,2.4202264,4632.2,4632.1,5.48684803]
[1755077171732,2.4202264,4632.2,4631.1,2.16026807]
[1755077171916,0.658,4632.0,4631.1,0.001]
[1755077172120,0.55,4632.0,4631.2,3.328]
[1755077172322,0.55,4631.8,4631.3,2.15921633]
[1755077172544,0.55,4631.6,4631.3,2.15921633]
[1755077172860,0.55,4631.3,4631.1,0.001]
[1755077173146,0.658,4631.4,4629.3,2.80837907]
[1755077173147,0.858889,4631.4,4631.2,3.328]
[1755077173317,0.55,4631.2,4629.8,2.1598872]
[1755077173513,0.55,4631.2,4630.0,2.16082721]
[1755077173514,0.108,4630.1,4630.0,2.16082721]
[1755077174658,0.108,4630.1,4630.0,5.48882721]
[1755077175433,0.108,4630.1,4630.0,10.66182721]
[1755077175837,0.108,4630.1,4630.0,7.33382721]
[1755077176042,0.108,4630.1,4630.0,10.66282721]
[1755077177556,0.108,4630.1,4630.0,7.33382721]
[1755077177927,2.0974,4630.1,4630.0,8.503]
[1755077178127,2.30714,4630.1,4630.0,5.174]
[1755077178332,2.30714,4630.1,4629.5,0.001]
[1755077178333,0.55,4630.0,4629.5,0.001]
[1755077178545,0.55,4630.0,4629.7,2.15994117]
[1755077178743,0.55,4629.8,4629.7,2.15996716]
[1755077179061,2.0974,4629.8,4629.7,5.48896716]
[1755077179228,2.328114,4629.8,4629.7,5.48896716]
[1755077179739,2.328114,4629.8,4629.7,2.15996716]
[1755077179936,2.328114,4629.8,4629.7,5.48896716]
[1755077180961,0.108,4629.8,4629.7,5.48896716]
[1755077181147,0.4291,4630.6,4630.3,2.15967899]
[1755077181347,1.4394,4630.5,4630.4,5.48859586]
[1755077181648,0.55,4630.4,4630.3,2.15967867]
[1755077181847,0.87692355,4630.4,4630.3,2.15967867]
[1755077182046,0.658,4630.4,4630.3,2.15967867]
[1755077182348,2.0974,4630.4,4630.2,2.15972327]
[1755077182666,0.55,4630.2,4629.6,5.174]
[1755077182964,0.55,4630.2,4630.1,2.15978056]
[1755077183170,0.74973291,4630.2,4630.1,5.48878056]
[1755077183338,1.0766462,4630.2,4630.1,5.48878056]
[1755077183662,2.0869462,4630.2,4630.1,5.48878056]
[1755077183869,2.0869462,4630.2,4630.1,2.15978056]
[1755077184163,2.0869462,4630.2,4630.1,5.48878056]
[1755077184334,1.0766462,4630.2,4630.1,5.48878056]
[1755077184533,0.658,4630.2,4630.1,5.48878056]
[1755077186276,2.0974,4630.2,4630.1,2.15978056]
[1755077186443,0.85781541,4630.2,4630.1,2.15978056]
[1755077186645,0.658,4630.2,4630.1,2.15978056]
[1755077187168,2.0974,4630.2,4630.1,2.15978056]
[1755077187371,2.30714,4630.2,4630.1,2.15978056]
[1755077187673,2.30714,4630.2,4630.1,3.33]
[1755077188369,1.75714,4630.2,4630.1,5.48978056]
[1755077188535,1.75714,4630.2,4630.1,2.15978056]
[1755077188736,1.75714,4630.2,4630.1,5.48978056]
[1755077188939,0.51771327,4630.2,4630.1,5.48978056]
[1755077189278,0.108,4630.2,4630.1,5.48978056]
[1755077190369,0.30797327,4630.2,4630.1,5.48978056]
[1755077191359,1.69887327,4630.2,4630.1,5.48978056]
[1755077191561,1.69887327,4630.2,4629.0,0.001]
[1755077191562,0.55,4630.1,4629.0,0.001]
[1755077191763,0.55,4630.1,4629.1,5.176]
[1755077191764,0.55,4629.9,4629.1,5.176]
[1755077191979,0.55,4629.7,4629.2,5.176]
[1755077192137,1.73087327,4629.8,4629.3,5.176]
[1755077192138,0.55,4629.5,4629.3,5.176]
[1755077192464,0.55,4629.5,4627.9,2.16076434]
[1755077192465,3.55,4629.3,4624.9,2.16217191]